Cogmind - Beta 16 @@@ ROGUE MODE // 2025.12.30 @ 21:13:30 Player: BottomOfTheSwamp Result: Destroyed by G-47 Trooper with Particle Gun Performance ------------- Evolutions (0) 0 Regions Visited (2) 400 Robots Destroyed (20) 100 Value Destroyed (436) 436 Prototype IDs (0) 0 Alien Tech Used (0) 0 Bonus (0) 0 TOTAL SCORE: 936 Bonus ------- None Cogmind --------- Core Integrity 0/250 Matter 295/300 Energy 96/100 System Corruption 2% Temperature Cool (9) Movement Walking (120) Location -10/Mines Parts ------- > --- POWER (1) -------- (None) > --- PROPULSION (2) --- Aluminum Leg Aluminum Leg > --- UTILITY (2) ------ Heat Sink Small Storage Unit > --- WEAPON (2) ------- Light Assault Rifle > --- INVENTORY (8) ---- Ion Engine Flight Unit Flight Unit Flight Unit Particle Gun Peak State ------------ > --- POWER ------------ Light Nuclear Core > --- PROPULSION ------- Aluminum Leg Aluminum Leg > --- UTILITY ---------- Heat Sink Small Storage Unit > --- WEAPON ----------- Medium Laser Particle Gun > --- INVENTORY -------- Ion Engine Flight Unit Flight Unit Flight Unit Small Laser [Rating: 10] Favorites ----------- Power Ion Engine Engine Ion Engine Power Core Light Nuclear Core Propulsion Aluminum Leg Leg Aluminum Leg Flight Unit Flight Unit Utility Small Storage Unit Device Heat Sink Storage Small Storage Unit Hackware Hacking Suite Weapon Medium Laser Energy Gun Medium Laser Ballistic Gun Light Assault Rifle Build | -11 -10 -10 ------- Run | Yrd Mat Min Slots Evolved . | . . . Power . | . . . Propulsion . | . . . Utility . | . . . Weapon . | . . . Parts Attached 16 | 6 3 7 Power 2 | 1 . 1 Engine 1 | 1 . . Core 1 | . . 1 Reactor . | . . . Propulsion 6 | 2 2 2 Treads . | . . . Leg 4 | 2 . 2 Wheel . | . . . Hover . | . . . Flight 2 | . 2 . Utility 3 | 1 1 1 Device 1 | . . 1 Storage 1 | 1 . . Processor . | . . . Hackware 1 | . 1 . Protection . | . . . Artifact . | . . . Weapon 5 | 2 . 3 Energy Gun 4 | 2 . 2 Energy Cannon . | . . . Ballistic Gun 1 | . . 1 Ballistic Cannon . | . . . Launcher . | . . . Special Weapon . | . . . Impact Weapon . | . . . Slashing Weapon . | . . . Piercing Weapon . | . . . Special Melee Weapon . | . . . Unidentified Prototypes . | . . . Parts Lost 5 | . . 5 Power 1 | . . 1 Propulsion 2 | . . 2 Utility 1 | . . 1 Weapon 1 | . . 1 Highest Loss Streak 4 | . . 4 To Critical Strikes . | . . . Average Backups 3 | 1 1 4 Power . | . . 1 Propulsion 2 | . . 3 Utility . | . . . Weapon . | . . . Tool/Special . | . . . Unused Backups 2 | . . 2 Power 1 | . . 1 Propulsion 1 | . . 1 Utility . | . . . Weapon . | . . . Tool/Special . | . . . Average Slot Usage (%) 96 | . 97 95 Engine 6 | . 14 3 Core 6 | . . 10 Leg 26 | . 28 25 Device 6 | . . 10 Storage 14 | . 14 14 Hackware 5 | . 12 2 Energy Gun 27 | . 28 27 Peak Build Rating 10 | 6 9 10 Average Rating 8 | 3 8 9 On Entrance 5 | . 6 9 Avg Prop Armor Cover (%) . | . . . Naked Turns . | . . . Heaviest Build 16 | 13 13 16 Greatest Support 20 | 20 20 20 Greatest Overweight (x) 4 | . . 4 Average Overweight (x) . | . . . Largest Inventory Capacity 8 | 8 8 8 Average Capacity 7 | 6 8 8 Most Carried 6 | 5 4 6 Average Carried 3 | . 1 4 Final Capacity 8 | 8 8 8 Final Carried 5 | . 4 5 Class Distribution -------------------- 96% | Mutant 3% | Scavenger-Mutant Dominant Class ---------------- Mutant | -10/Materials Mutant | -10/Mines Resources | -11 -10 -10 ----------- Run | Yrd Mat Min Matter Collected 469 | 241 69 159 Remotely . | . . . Salvage Created 616 | . 250 366 Parts 39 | . 15 24 Haulers Intercepted . | . . . Recyclers Shooed 3 | . 1 2 Parts Field Recycled . | . . . Retrieved Matter . | . . . Parts Self-Destructed . | . . . Prevented . | . . . Parts Restored . | . . . Kills | -11 -10 -10 ------- Run | Yrd Mat Min Combat Hostiles Destroyed 16 | . 5 11 Guns 16 | . 5 11 Classes Destroyed 6 | . 5 1 Tunneler 1 | . . 1 Recycler 1 | . 1 . Operator 1 | . 1 . Watcher 1 | . 1 . Swarmer 8 | . 3 5 Grunt 8 | . 2 6 Best Kill Streak 5 | . 5 4 Combat Bots Only 5 | . 5 4 Max Kills in Single Turn 1 | . 1 1 Gunslinging . | . . . Exploded . | . . . Melee . | . . . Uniques/NPCs Destroyed . | . . . Combat | -11 -10 -10 -------- Run | Yrd Mat Min Hostile Shots Fired 84 | . 12 72 Missed 13 | . 3 10 Hits 71 | . 9 62 Projectile 71 | . 9 62 Damage Taken 774 | . 83 691 Core 259 | . 19 240 Absorbed by Shields . | . . . Core Remaining (%) 100 | 100 . . Volleys Fired 59 | . 17 42 Largest 2 | . 2 2 Hottest 115 | . 90 115 Shots Fired 108 | . 34 74 Gun 108 | . 34 74 Cannon . | . . . Launcher . | . . . Special . | . . . Kinetic 4 | . . 4 Thermal 104 | . 34 70 Explosive . | . . . Electromagnetic . | . . . Robot Hit Streak 7 | . 7 7 Robot Miss Streak 3 | . 1 3 Penetration Max . | . . . Secondary Targets 1 | . . 1 Max Gunslinging Chain 1 | . . 1 Shots Hit Robots 70 | . 24 46 Core Hits 34 | . 14 20 Critical Kills . | . . . Critical Parts Destroyed . | . . . Critical Strikes 3 | . . 3 Burn 3 | . . 3 Melee Attacks . | . . . Impact . | . . . Slashing . | . . . Piercing . | . . . Sneak Attacks . | . . . Combat Hostiles . | . . . Follow-up Attacks . | . . . Damage Inflicted 906 | . 309 597 Guns 906 | . 309 597 Cannons . | . . . Explosions . | . . . Melee . | . . . Ramming . | . . . Kinetic 24 | . . 24 Thermal 882 | . 309 573 Explosive . | . . . Electromagnetic . | . . . Impact . | . . . Slashing . | . . . Piercing . | . . . Highest Corruption 2 | . 2 2 Average Corruption 2 | . 2 2 Corruption Purged . | . . . Corruption Blocked . | . . . Effects 13 | . 1 12 Message Errors 2 | . . 2 Matter Fused 5 | . . 5 Heat Flow Errors 3 | . 1 2 Data Loss (minor) 2 | . . 2 Weapon Failures 1 | . . 1 Overload Shots . | . . . Overflow Damage . | . . . Projectiles . | . . . Explosions . | . . . Melee . | . . . Knockbacks . | . . . Impact . | . . . Kinetic . | . . . Secondary . | . . . Self-Inflicted Damage . | . . . Shots . | . . . Rammed . | . . . Targets Rammed 2 | . . 2 Kicked 2 | . . 2 Crushed . | . . . Highest Temperature 445 | . 294 445 Average Temperature 145 | . 105 166 Received Heat Transfer 333 | . 24 309 Effects 6 | . . 6 Shutdowns 1 | . . 1 Energy Bleed 3 | . . 3 Matter Decay 1 | . . 1 Short Circuit 1 | . . 1 Siege Activations . | . . . Martial Activations . | . . . Shielding Activations . | . . . Robots Disrupted . | . . . Combat Hostiles . | . . . Robots Corrupted . | . . . Combat Hostiles . | . . . Parts Fried . | . . . Impact Corruptions . | . . . Robots Melted . | . . . Combat Hostiles . | . . . Parts Melted 2 | . 1 1 Heat Transferred 2539 | . 794 1745 Parts Sabotaged . | . . . Parts Stolen . | . . . Parts Stripped . | . . . Power Chain Reactions . | . . . Alert | -11 -10 -10 ------- Run | Yrd Mat Min Maximum Alert Level . | . . . Low Security (%) 100 | 100 100 100 Level 1 . | . . . Level 2 . | . . . Level 3 . | . . . Level 4 . | . . . Level 5 . | . . . High Security . | . . . Max Security . | . . . Peak Influence 121 | . 100 121 Initial 25 | . . 25 Average 22 | . 27 22 Influence Increases 432 | . 142 290 Destroy 0b10 Robot/C 320 | . 100 220 Destroy 0b10 Robot/NC 20 | . 15 5 Destroy Leader 62 | . 12 50 Lose Combat Pursuer 30 | . 15 15 Influence Decreases 335 | . 75 260 Entered New Map 42 | . . 42 Time Decay 243 | . 75 168 Lost Part 50 | . . 50 Squads Dispatched . | . . . Investigation . | . . . Extermination . | . . . Reinforcement . | . . . Assault . | . . . Garrison . | . . . Intercept . | . . . Searches Triggered . | . . . Construction Impeded . | . . . Haulers Reinforced . | . . . Active Scanning Responses . | . . . Cargo Convoy Interrupts . | . . . Stealth | -11 -10 -10 --------- Run | Yrd Mat Min Distress Signals . | . . . Communications Jammed . | . . . Distress Signals . | . . . Times Spotted 24 | . 10 14 Peak Tracking Total 5 | . 3 5 Tactical Retreats 2 | . 1 1 Traps | -11 -10 -10 ------- Run | Yrd Mat Min Traps Triggered 1 | . 1 . Indirectly . | . . . Trap Hack Attempts . | . . . Triggered . | . . . Disarmed . | . . . Reprogrammed . | . . . Reused . | . . . Traps Extracted . | . . . Installed . | . . . Triggered . | . . . Machines | -11 -10 -10 ---------- Run | Yrd Mat Min Machines Disabled . | . . . Max in Single Turn . | . . . Machines Repaired . | . . . Machines Dismantled . | . . . Machines Sabotaged . | . . . Overloaded Fab Kills . | . . . Hacking | -11 -10 -10 --------- Run | Yrd Mat Min Machines Accessed 2 | . 2 . Terminals 2 | . 2 . Fabricators . | . . . Repair Stations . | . . . Recycling Units . | . . . Scanalyzers . | . . . Garrison Access . | . . . Total Hacks 3 | . 3 . Successful . | . . . Failed 3 | . 3 . Catastrophic 2 | . 2 . Database Lockouts . | . . . Manual 3 | . 3 . Terminals 3 | . 3 . Fabricators . | . . . Repair Stations . | . . . Recycling Units . | . . . Scanalyzers . | . . . Garrison Access . | . . . Terminal Hacks . | . . . Fabricator Hacks . | . . . Repair Station Hacks . | . . . Recycling Unit Hacks . | . . . Scanalyzer . | . . . Garrison Access Hacks . | . . . Unauthorized Hacks . | . . . Terminals . | . . . Fabricators . | . . . Repair Stations . | . . . Recycling Units . | . . . Scanalyzers . | . . . Garrison Access . | . . . Data Cores Recovered 1 | . 1 . Used 1 | . 1 . Hacking Detections 2 | . 2 . Full Trace Events . | . . . Feedback Events . | . . . Feedback Blocked . | . . . Robot Schematics Acquired . | . . . Robots Built . | . . . Authchips . | . . . Time . | . . . Total Robot Build Rating . | . . . Part Schematics Acquired . | . . . Parts Built . | . . . Authchips . | . . . Time . | . . . Total Part Build Rating . | . . . Part Studies Acquired . | . . . Parts Repaired . | . . . Time . | . . . Parts Recycled . | . . . Recycled Matter . | . . . Retrieved Matter . | . . . Retrieved Components . | . . . Parts Scanalyzed . | . . . Part Schematics Acquired . | . . . Parts Damaged . | . . . Bothacking | -11 -10 -10 ------------ Run | Yrd Mat Min Used RIF Installer . | . . . Robots Hacked . | . . . Non-combat . | . . . Combat . | . . . Robot Hacks Applied . | . . . Relay Couplers Released . | . . . Fabnet Peak Effective % . | . . . Robots Rewired . | . . . Allies Hacked . | . . . Hacks Repelled . | . . . Allies | -11 -10 -10 -------- Run | Yrd Mat Min Total Allies . | . . . Largest Group . | . . . Highest-Rated Group . | . . . Highest-Rated Ally . | . . . Total Orders . | . . . Ally Attacks . | . . . Total Damage . | . . . Kills . | . . . Allies Corrupted . | . . . Allies Melted . | . . . Intel | -11 -10 -10 ------- Run | Yrd Mat Min Active Infowar (turns) . | . . . Robot Analysis Total . | . . . Derelict Logs Recovered 1 | . . 1 Drone Launches . | . . . Drone Recoveries . | . . . Exploration | -11 -10 -10 ------------- Run | Yrd Mat Min Turns Passed 1136 | 63 346 727 Spaces Moved 750 | 52 228 470 Core 32 | 28 . 4 Treads . | . . . Legs 718 | 24 228 466 Wheels . | . . . Hover . | . . . Flight . | . . . Fastest Speed 50 | 50 120 120 Average Speed 117 | 82 120 120 Slowest Speed 250 | 120 120 250 Overloaded Moves . | . . . Propulsion Burnouts . | . . . Robots Hopped . | . . . Potential Cave-ins . | . . . Cave-ins Triggered . | . . . Exploration Rate (%) 36 | 4 33 73 Regions Visited 2 Branch Regions 1 Pre-discovered Areas 1 | . . 1 Known Exits Taken . | . . . Unknown Exits Taken 2 | 1 1 . Scrap Searched . | . . . Spaces Dug . | . . . Terrain Destroyed . | . . . Melee . | . . . Projectile . | . . . AOE . | . . . Terrain Rammed . | . . . Walls Destroyed . | . . . Machines Disabled . | . . . Actions | -11 -10 -10 --------- Run | Yrd Mat Min Total 889 | 71 264 554 Wait 42 | 9 10 23 Move 748 | 51 227 470 Hop . | . . . Pick Up 17 | 5 5 7 Fast Attach 1 | 1 . . Attach 10 | 5 1 4 Detach . | . . . Swap 7 | . 4 3 Drop 3 | . . 3 Fire 59 | . 17 42 Melee . | . . . Ram . | . . . Kick 2 | . . 2 Crush . | . . . Escape Stasis . | . . . Rewire . | . . . Trap . | . . . Miscellaneous . | . . . Route ------- -11/Scrapyard -10/Materials -10/Mines History --------- Turn | Location | Event 2 | -11/Scrapyard | Met Revision 17 37 | -11/Scrapyard | Discovered new exit (range 13) 64 | -11/Scrapyard | Entered Materials 313 | -10/Materials | Build established: Mutant 356 | -10/Materials | Discovered new exit (range 13) 410 | -10/Materials | Entered Mines 840 | -10/Mines | Learned location of Zion (-7) 1060 | -10/Mines | Core integrity fell below 50% 1094 | -10/Mines | Core integrity fell below 20% 1137 | -10/Mines | Destroyed by G-47 Trooper with Particle Gun Last Messages --------------- 01069_ Overheating: Energy bleed (-32). 01069_ G-47 Trooper destroyed. 01071_ Med. Laser destroyed. 01072_ System corrupted: Particle Gun failed to cycle. 01077_ Overheating: Energy bleed (-17). 01078_ S-10 Pest destroyed. 01081_ Aluminum Leg destroyed. 01085_ Particle Gun broken. 01085_ Overheating: Short circuit. 01093_ PEKI8TTASYJPUDDBVXB KK< 01107_ Acquired Lgt. Assault Rifle. 01108_ Lgt. Nuclear Core destroyed. 01110_ Dropped Sml. Laser. 01116_ G-34 Mercenary destroyed. 01119_ Acquired Aluminum Leg. 01121_ Acquired 32 matter. 01126_ Acquired Aluminum Leg. 01130_ Kicked U-05 Engineer. 01134_ K-01 Serf collects debris. 01136_ Kicked K-01 Serf. Map ----- +----------------------------------------------------+ | | | | | ?????????????????????????????????????????????????? | | ?????????????????????????????????????????????????? | | ???????####??????????????????????????????????????? | | ?????## ##?????????????????????????????????????? | | ?????# #?????????????????????????????????????? | | ?????# #?????????????????????????????????????? | | ????## #??????????????????????????????????????? | | ???## ###??????????????????????????????????????? | | ???# ##?????##???????#####?????????????????????? | | ??## #??????# ###???# ##????????????????????? | | ### ##??????? #??# #????????????????????? | | #????????# #??# #????????????????????? | | #????????# #??# #????????????????????? | | #??????### #### #?????????????????????? | | ##?????## ## #??????????????????????? | | ##?????## #???????????????????????? | | ##?????## #????????????????????????? | | ###??????# #????????????????????????? | | ##????????# ### #????????????"""?????????? | | ??????????## ##?## ##???????## """?????????? | | ???????????## #???# ####### """?????????? | | ????????????# ##???# ##%k ?????? | | #######?????# ##????# ##=### ####????????????? | | ##????# #?????# ##@#??# ##???????????????? | | ###??# #?????# [==#???###????????????????? | | ### ##?# #?????####[#??????????????????????? | | ??## ### #????????#%#??????????????????????? | | ???## #???????? ==??????????????????????? | | ????### #######???????? #?????????????????????? | | ??????####?????????????? #?????????????????????? | | ????????????????????????""g??????????????????????? | | ???????????????????????""" #?????????????????????? | | ???????????????????????"""g#?????????????????????? | | ??????????????????????? #?????????????????????? | | ??????????????????????????##?????????????????????? | | ???????????????????????? ????????????????????????? | | ???#???????????????????# #???????????????????????? | | ?? #???????????????????# ???????????????????????? | | ?? #??????????????????? ???????????????????????? | | ? #??###?????????????? ???????????????????????? | | ? #?# ##???????? ????? ?????????####??????????# | | ? ## ##??????? ????? #???????## ##????????## | | ? ##?????? ????? #??????# ##???????# | | ? #?????# ????? #?????## ##??????# | | # #?????# ?????# #????## = ###?????# | | ##????# ?????# #?#### !=% ##????? | | ##???# #????# ### =[ ##???? | | ?? #????# ## *## ##??? | +----------------------------------------------------+ Best States ------------- Heat Dissipation 35 Energy Generation 14 Energy Capacity 250 Matter Stores 300 Matter Capacity 300 Sight Range 16 Terrain Scan Density 10 Evasion (%) 55 Offensive Hacking 10 Item Schematics ----------------- None Robot Schematics ------------------ None Fabricated ------------ Nothing Repaired ---------- Nothing Studied --------- None Alien Tech Used ----------------- None Achievements -------------- Dynamic Key Challenges ------------ None Game ------ Seed TowerWaveObliterator Manual? 0 Play Time 00:12:54 Cumulative 15.4 hours Start 2025.12.30 @ 14:24:00 End 2025.12.30 @ 21:13:30 Sessions 1 Manual Loads 0 Difficulty Rogue Special Mode None Game No. 38 Rogue 38 Adventurer 0 Explorer 0 Win Type - Total 0 Types 0/0/0/0/0/0/0/0/0/0 Lore% 11 Gallery% 18 Achievement% 14 Wizard Run 0 Options --------- Layout 0 ASCII 0 Keyboard 0 Movement Arrows Keybinds 0 Fullscreen 1 Font 18/SmallcapsGlow Map View 76x50 Zoom Use 0% Tactical HUD 1 Map Filters NONE Filters NONE Steam 1 RUN: 7315dd4e-777d-4ac3-a657-0afa719a7bb4